bitfinex-derivatives/quotes_ETHF0:USTF0_20251007
["timestamp","ask_amount","ask_price","bid_price","bid_amount"]
[1759847386385,6.055911,4633.3,4632.6,0.3685]
[1759847386386,2.848111,4633.3,4632.7,0.9788]
[1759847386585,0.00261273,4633.3,4632.8,0.219]
[1759847386785,0.00261273,4633.3,4632.9,0.9788]
[1759847387085,0.00261273,4633.3,4632.7,0.9788]
[1759847387287,0.00261273,4633.3,4632.7,0.98141168]
[1759847387587,3.2078,4633.0,4632.7,0.00261168]
[1759847387790,3.2078,4633.0,4632.8,0.9788]
[1759847388090,3.59605,4633.0,4632.8,0.9788]
[1759847388484,3.2078,4633.0,4632.7,0.00261168]
[1759847388888,3.2078,4633.0,4632.8,0.9788]
[1759847389189,3.2078,4633.0,4632.7,0.00261168]
[1759847389393,3.2078,4633.0,4632.9,0.9788]
[1759847389584,0.00261273,4633.3,4632.9,0.9788]
[1759847389785,0.00261273,4633.3,4632.8,0.9788]
[1759847390086,3.2078,4633.2,4633.0,0.9788]
[1759847390281,3.2078,4633.2,4632.9,0.219]
[1759847390282,3.2078,4633.2,4632.8,0.9788]
[1759847390487,3.2078,4633.2,4633.0,0.9788]
[1759847390690,0.00261273,4633.3,4632.8,0.9788]
[1759847390891,0.38822,4633.2,4632.7,0.00261168]
[1759847391191,0.38826,4632.8,4632.7,0.98141168]
[1759847391492,0.38826,4632.8,4632.7,1.20041168]
[1759847391691,0.38826,4632.8,4632.7,0.98141168]
[1759847391890,0.38826,4632.8,4632.7,1.20041168]
[1759847392089,3.21041273,4633.3,4632.7,1.20041168]
[1759847392281,0.00261273,4633.3,4633.2,1.3473]
[1759847392594,0.38816,4634.0,4633.9,0.9788]
[1759847392789,3.4268,4634.7,4633.9,0.9788]
[1759847393089,3.4268,4634.7,4633.2,0.3685]
[1759847393090,0.38821,4633.4,4633.2,0.3685]
[1759847393282,3.2078,4633.3,4633.2,0.3685]
[1759847393486,3.20971536,4633.3,4633.2,0.5875]
[1759847393792,0.38826,4632.8,4632.7,0.00261168]
[1759847394092,11.3485421,4632.8,4632.7,0.00261168]
[1759847394290,11.3485421,4632.8,4632.7,1.68e-06]
[1759847394690,0.97071,4632.6,4631.4,1.3473]
[1759847394992,0.3884,4631.1,4630.8,1.3473]
[1759847395382,2.76593603,4631.1,4630.8,0.3685]
[1759847395580,0.38842,4630.9,4630.8,0.3685]
[1759847395782,0.38842,4630.9,4630.8,0.37048133]
[1759847395987,7.82179025,4630.9,4629.7,0.9788]
[1759847396192,3.59628,4630.1,4629.0,1.3473]
[1759847396388,0.38857,4629.1,4629.0,1.3473]
[1759847396589,3.2078,4629.5,4629.0,1.3473]
[1759847396788,0.38857,4629.1,4629.0,0.3685]
[1759847396989,0.38857,4629.2,4629.0,1.3473]
[1759847397191,3.16427326,4629.1,4629.0,0.3707938]
[1759847397389,2.77570326,4629.1,4629.0,1.3495938]
[1759847397591,0.00191069,4629.2,4629.1,0.9788]
[1759847397788,0.00191069,4629.2,4629.1,6.58637]
[1759847398187,3.2078,4631.2,4630.8,0.3685]
[1759847398489,3.2078,4631.2,4631.1,0.9788]
[1759847398690,2.84831094,4632.4,4631.1,0.9788]
[1759847398691,3.2078,4632.2,4632.0,0.3685]
[1759847398893,3.2078,4632.2,4632.1,0.9788]
[1759847399085,3.21052706,4632.2,4632.1,0.9788]
[1759847399691,0.00272706,4632.2,4632.1,5.9788]
[1759847400090,0.00272706,4632.2,4632.1,0.9788]
[1759847400296,3.2078,4632.8,4632.6,0.3685]
[1759847400501,3.2078,4634.0,4633.3,0.3685]
[1759847400797,3.2078,4634.0,4633.6,0.9788]
[1759847400994,3.2078,4634.5,4634.0,0.75665]
[1759847401294,0.00172337,4634.5,4634.1,0.60715]
[1759847401486,0.00172337,4634.5,4634.2,0.9788]
[1759847401687,3.2078,4635.8,4634.6,0.9788]
[1759847401888,3.2078,4635.2,4634.0,0.37078445]
[1759847402094,0.38819,4633.6,4633.5,0.9788]
[1759847402297,3.2078,4634.1,4633.4,0.9788]
[1759847402298,0.3882,4633.5,4633.4,0.9788]
[1759847403191,0.00231093,4633.5,4633.4,9.18920722]
[1759847403386,3.2078,4634.8,4634.7,1.3565]
[1759847403597,0.095,4636.1,4634.8,0.9558]
[1759847403598,3.2078,4635.4,4634.8,0.9558]
[1759847403795,3.2078,4634.9,4634.8,0.9558]
[1759847403999,0.38809,4634.8,4634.7,1.3565]
[1759847404193,0.38809,4634.8,4634.7,0.4007]
[1759847404393,3.2329133,4634.8,4634.7,1.3565]
[1759847404596,0.39058962,4634.8,4634.7,1.3565]
[1759847404792,0.00249962,4634.8,4634.7,1.3565]
[1759847405506,0.38814,4634.2,4634.1,0.9558]
[1759847405701,3.59594,4634.2,4634.0,0.4007]
[1759847405902,0.38819,4633.6,4633.5,0.9558]
[1759847406401,3.2078,4634.7,4634.1,0.9558]
[1759847406594,3.2078,4634.7,4634.0,0.4007]
[1759847406794,3.59594,4634.2,4634.0,0.4007]
[1759847407104,0.3882,4633.5,4633.4,0.95840722]
[1759847407401,3.596,4633.5,4633.4,0.95840722]
[1759847407700,0.38826,4632.8,4632.7,0.9558]
[1759847407897,3.2078,4633.4,4633.3,1.3565]
[1759847408100,0.3882,4633.6,4633.4,0.9558]
[1759847408492,3.2078,4634.1,4633.4,0.00189441]
[1759847408697,0.38815,4634.1,4634.0,0.4007]
[1759847408896,0.3882,4633.5,4633.4,0.95769441]
[1759847409102,3.596,4633.5,4633.4,0.00189441]
[1759847409303,3.596,4633.5,4633.4,0.95769441]
[1759847410094,0.97054,4633.4,4632.8,0.9558]
[1759847410297,0.38827,4632.7,4632.6,0.4007]
[1759847410502,0.38832,4632.0,4631.9,1.3565]
[1759847410699,0.38837,4631.5,4631.4,0.9558]
[1759847410899,0.97094,4631.4,4630.8,0.9558]
[1759847411102,3.59622,4630.9,4630.8,0.00178588]
[1759847411298,3.59622,4630.9,4630.8,0.95758588]
[1759847411897,3.2098794,4631.4,4631.2,0.4007]
[1759847412100,4.1808394,4631.4,4630.8,0.00178588]
[1759847412301,0.97111,4630.7,4630.1,0.9558]
[1759847412503,0.3885,4629.9,4629.8,0.4007]
[1759847412701,0.38849,4630.1,4629.8,0.4007]
[1759847412906,0.3885,4630.0,4629.9,0.9558]
[1759847413404,0.3885,4630.0,4629.9,0.95825171]
[1759847414501,3.2078,4630.9,4630.5,0.4007]
[1759847414904,0.38843,4630.7,4630.6,1.1748]
[1759847415098,3.2078,4630.9,4630.6,0.9558]
[1759847415299,3.2078,4630.9,4630.7,0.9558]
[1759847415500,3.2078,4630.9,4630.6,0.219]
[1759847415704,3.2078,4630.9,4630.8,1.34422]
[1759847415906,3.2078,4630.9,4630.8,0.9558]
[1759847416203,3.2078,4630.9,4630.5,0.4007]
[1759847416504,3.2078,4630.9,4630.6,0.9558]
[1759847416706,0.38842,4630.8,4630.5,0.4007]
[1759847416906,0.38844,4630.7,4630.5,0.6197]
[1759847417303,3.2078,4630.9,4630.7,0.38843]
[1759847417510,3.2078,4630.9,4629.9,0.95825171]
[1759847417804,0.38849,4630.0,4629.9,0.00245171]
[1759847418009,0.97128,4629.8,4628.7,0.9558]
[1759847418205,0.38859,4628.8,4628.6,3.2078]
[1759847418406,0.38857,4629.1,4628.5,1.34442]
[1759847418705,2.99459155,4629.7,4628.5,1.34442]
[1759847418706,0.3885,4630.0,4629.9,0.9558]
[1759847418903,0.38849,4630.0,4629.9,0.95827775]
[1759847419213,0.38853,4629.5,4629.3,0.9558]
[1759847419404,4.17902,4630.1,4629.2,0.9558]
[1759847419606,0.38855,4629.3,4629.2,0.9558]
[1759847419798,0.38854,4629.5,4629.2,0.9558]
[1759847419998,3.2078,4630.1,4629.3,0.219]
[1759847420205,3.2078,4630.1,4629.8,0.4007]
[1759847420499,0.0020794,4631.4,4630.6,0.9558]
[1759847420700,0.0020794,4631.4,4630.6,1.34423]
[1759847420901,0.0020794,4631.4,4631.2,0.4007]
[1759847421101,0.0020794,4631.4,4631.3,0.9558]
[1759847421405,0.0020794,4631.4,4631.3,6.56318]
[1759847421599,3.2078,4632.1,4632.0,0.9558]
[1759847421799,0.38831,4632.2,4632.0,1.1748]
[1759847422004,0.38831,4632.2,4632.1,0.219]
[1759847422200,3.2078,4632.6,4632.2,0.9558]
[1759847422404,3.2078,4632.6,4631.9,5.4007]
[1759847422405,0.38828,4632.5,4632.3,0.219]
[1759847422605,0.38828,4632.5,4632.4,1.1748]
[1759847422606,0.00187046,4632.5,4632.4,1.1748]
[1759847423011,0.00187046,4632.5,4632.4,0.9558]
[1759847423207,0.00187046,4632.5,4632.4,5.9558]
[1759847423413,3.2078,4633.6,4633.4,0.9558]
[1759847423609,0.3882,4633.6,4633.5,0.9558]
[1759847423814,0.3882,4633.6,4633.5,1.1748]
[1759847424010,3.2078,4634.1,4633.5,0.219]
[1759847424213,3.2078,4634.1,4633.3,0.4007]
[1759847424214,0.3882,4633.5,4633.3,0.4007]
[1759847424411,0.3882,4633.5,4633.3,1.3565]
[1759847424713,0.38829,4632.5,4632.0,0.9558]
[1759847424912,3.2078,4632.7,4632.6,1.3565]
[1759847425105,3.2078,4633.2,4632.7,0.9558]
[1759847425312,3.2078,4633.2,4632.6,0.4007]
[1759847425512,3.2078,4633.2,4632.9,0.38824]
[1759847425712,3.2078,4633.2,4632.9,0.39038174]
[1759847426017,3.2078,4633.2,4633.1,0.9558]
[1759847426313,3.20993151,4634.1,4634.0,1.3565]
[1759847426513,3.20993151,4634.1,4634.0,1.5755]
[1759847426712,3.20993151,4634.1,4633.3,0.4007]
[1759847426910,0.3882,4633.6,4633.4,0.9558]
[1759847427116,0.3882,4633.5,4633.4,0.9558]
[1759847427316,0.3882,4633.5,4633.3,0.4007]
[1759847427514,0.38824,4633.0,4632.9,0.95794174]
[1759847427717,3.2078,4633.0,4632.9,0.95794174]
[1759847427917,0.38823,4633.1,4633.0,0.9558]
[1759847428310,0.38823,4633.1,4632.9,0.00214174]
[1759847428517,3.2078,4633.0,4632.9,0.00214174]
[1759847428714,3.2078,4633.0,4632.9,0.95794174]
[1759847429114,0.38823,4633.1,4633.0,0.9558]
[1759847429511,7.79112102,4633.1,4632.2,0.49056]
[1759847429711,0.38838,4631.4,4631.2,0.5537]
[1759847429919,0.38838,4631.4,4631.2,0.4007]
[1759847430112,0.38838,4631.4,4629.8,0.4007]
[1759847430113,0.38844,4630.6,4630.4,0.219]
[1759847430318,0.38844,4630.6,4629.8,3.6085]
[1759847430514,0.39018505,4630.6,4630.5,0.40258369]
[1759847430915,0.00174505,4630.6,4630.5,0.40258369]
[1759847431114,3.2078,4632.2,4630.5,5.40258369]
[1759847431316,0.38838,4631.4,4631.2,0.4007]
[1759847431521,0.97091,4631.6,4630.5,0.40258369]
[1759847431716,0.3884,4631.1,4630.8,0.38842]
[1759847431921,0.3884,4631.1,4630.6,0.219]
[1759847432117,0.00181324,4631.1,4630.6,0.219]
[1759847432418,0.00181324,4631.1,4630.7,0.219]
[1759847432619,0.00181324,4631.1,4631.0,1.003]
[1759847432822,0.39021324,4631.1,4631.0,1.222]
[1759847433124,0.39021324,4631.1,4631.0,1.003]
[1759847433522,0.39021324,4631.1,4631.0,1.222]
[1759847433723,0.38844,4630.6,4630.5,1.40558369]
[1759847434318,0.38844,4630.6,4630.5,1.62458369]
[1759847434518,0.38844,4630.6,4630.5,0.00188369]
[1759847435516,3.2078,4630.7,4630.6,1.003]
[1759847435817,0.00181324,4631.1,4630.5,0.39098369]
[1759847436016,0.00181324,4631.1,4631.0,1.003]
[1759847437019,3.2078,4632.0,4631.5,1.003]
[1759847437224,3.05275754,4632.0,4631.9,1.003]
[1759847437624,0.38837,4631.5,4631.4,0.3891]
[1759847437824,0.38837,4631.5,4631.4,1.3921]
[1759847438021,0.00279018,4631.5,4631.4,1.3921]
[1759847438218,0.00279018,4631.5,4631.4,4.8189]
[1759847438420,0.219,4632.7,4631.4,9.8189]
[1759847438421,3.2078,4632.7,4631.4,9.8189]
[1759847438620,3.2078,4632.7,4632.6,1.3458]
[1759847439324,0.38831,4632.2,4632.1,0.9579]
[1759847439530,0.38836,4631.6,4631.5,0.9579]
[1759847440225,0.3884,4631.1,4631.0,3.2078]
[1759847440426,0.3884,4631.1,4631.0,4.1657]
[1759847440627,0.3884,4631.1,4631.0,1.1769]
[1759847441129,0.38844,4630.6,4630.5,0.00188369]
[1759847441323,0.38844,4630.6,4630.5,1.17878369]
[1759847441527,3.2078,4631.2,4630.6,0.9579]
[1759847441834,0.38843,4630.7,4630.6,0.9579]
[1759847442035,0.38843,4630.7,4630.6,1.1769]
[1759847442230,0.38843,4630.7,4630.6,0.9579]
[1759847442435,0.38843,4630.7,4630.5,0.00188369]
[1759847442634,0.38843,4630.7,4630.5,0.95978369]
[1759847442829,3.2078,4631.2,4630.6,0.9579]
[1759847443028,0.38837,4631.6,4630.7,3.2078]
[1759847443224,3.2078,4631.8,4631.2,3.5957]
[1759847443431,3.2078,4631.8,4631.3,0.9579]
[1759847443627,0.38835,4631.7,4631.5,0.9579]
[1759847443828,3.2078,4631.8,4631.4,0.219]
[1759847444032,3.2078,4631.8,4631.5,0.9579]
[1759847444628,0.00239837,4632.2,4632.1,0.9579]
[1759847444934,0.00239837,4632.2,4632.1,1.1769]
[1759847445329,0.00239837,4632.2,4632.1,0.9579]
[1759847445526,3.2078,4633.5,4632.8,0.9579]
[1759847445732,3.2078,4633.5,4632.7,0.9579]
[1759847446034,0.38824,4633.1,4632.9,0.219]
[1759847446332,1.94051,4634.8,4632.9,0.219]
[1759847446333,3.2078,4634.1,4633.3,0.9579]
[1759847446528,3.21053163,4634.1,4633.8,0.3879]
[1759847446832,0.00273163,4634.1,4634.0,1.34606]
[1759847447036,0.38816,4633.9,4633.8,3.56e-06]
[1759847447335,3.2442365,4633.9,4633.8,3.56e-06]
[1759847447534,8.2442365,4633.9,4633.8,3.56e-06]
[1759847447731,0.97055,4633.3,4632.3,0.9579]
[1759847447929,0.38832,4632.1,4631.4,0.38837]
[1759847448124,0.38829,4632.4,4632.0,1.3458]
[1759847448328,0.38831,4632.2,4632.1,0.9579]
[1759847448535,0.38831,4632.2,4632.1,1.1779]
[1759847448736,0.38831,4632.2,4632.1,1.18040133]
[1759847449328,1.94054,4634.7,4632.4,0.9579]
[1759847449329,3.2078,4633.6,4632.4,0.9579]
[1759847449529,0.97055,4633.3,4632.6,3.5957]
[1759847449830,0.38831,4632.2,4632.1,0.00250133]
[1759847450336,0.38831,4632.2,4632.1,1.33e-06]
[1759847450528,0.38831,4632.2,4632.1,0.95790133]
[1759847451933,0.38831,4632.2,4632.1,1.17690133]
[1759847452134,0.97057,4633.2,4632.2,1.34621]
[1759847452333,0.38829,4632.4,4632.3,0.9579]
[1759847452536,0.38826,4632.8,4632.6,0.3879]
[1759847452728,0.38826,4632.8,4632.7,1.1769]
[1759847452927,0.38826,4632.8,4632.7,0.9579]
[1759847453334,0.38826,4632.8,4632.7,1.1779]
[1759847453636,0.38826,4632.8,4632.6,0.3879]
[1759847453933,3.2078,4633.1,4632.8,0.9579]
[1759847454133,0.38816,4634.0,4633.9,0.9579]
[1759847454431,0.00273163,4634.1,4633.9,1.56506]
[1759847454633,3.2078,4634.7,4634.5,0.38811]
[1759847454831,0.38808,4634.9,4634.7,0.9579]
[1759847455031,0.22,4635.8,4633.9,0.9579]
[1759847455032,0.38816,4634.0,4633.9,0.9579]
[1759847455238,3.2078,4634.8,4633.9,0.9579]
[1759847455438,3.2078,4635.6,4634.6,3.2078]
[1759847455638,0.00161798,4634.8,4634.7,1.1769]
[1759847456033,0.38803,4635.6,4635.4,0.9579]
[1759847456233,0.38803,4635.6,4635.1,0.9579]
[1759847456234,0.38806,4635.2,4635.1,0.9579]
[1759847456536,3.2078,4635.6,4634.0,3.2078]
[1759847456537,0.38811,4634.5,4634.0,3.2078]
[1759847456735,0.38811,4634.5,4634.4,0.6079]
[1759847456936,0.38811,4634.5,4634.4,0.3879]
[1759847457132,3.59805509,4634.5,4634.4,4.78e-06]
[1759847457328,0.97034,4634.4,4633.5,0.109]
[1759847457533,3.20994509,4634.5,4633.5,3.3168]
[1759847457739,0.38816,4634.0,4633.3,0.3879]
[1759847457940,0.38821,4633.4,4633.3,0.3879]
[1759847458134,0.38821,4633.4,4633.3,0.6079]
[1759847458330,0.38821,4633.4,4633.3,0.61054005]
[1759847458537,0.3882,4633.6,4633.4,0.9579]
[1759847458736,0.9704,4634.0,4633.4,0.9579]
[1759847459037,0.3882,4633.5,4633.4,0.9579]
[1759847459335,0.00214509,4634.5,4633.5,0.9579]
[1759847459638,0.00214509,4634.5,4634.3,0.9579]
[1759847459837,0.38807,4635.1,4634.8,0.9579]
[1759847460040,0.38807,4635.1,4635.0,0.9579]
[1759847460227,3.2078,4635.7,4635.4,0.3879]
[1759847460429,3.2078,4635.7,4635.5,0.22]
[1759847460628,0.38801,4635.8,4635.6,0.9579]
[1759847460828,0.38801,4635.7,4635.5,0.9579]
[1759847461039,0.38802,4635.7,4635.6,0.22]
[1759847461235,0.00203513,4635.8,4635.6,0.60802]
[1759847461540,3.2078,4636.7,4636.2,0.9579]
[1759847461744,0.38796,4636.3,4636.1,1.3458]
[1759847461939,0.38803,4635.5,4635.4,1.3458]
[1759847462139,0.38803,4635.5,4635.4,1.5658]
[1759847462537,0.39072831,4635.5,4635.4,1.5658]
[1759847463644,0.39072831,4635.5,4635.4,1.3458]
[1759847463937,0.38809,4634.8,4634.7,0.6079]
[1759847464432,0.38809,4634.8,4634.7,1.3645]
[1759847464736,0.38809,4634.8,4634.7,1.5845]
[1759847464937,3.21049831,4635.5,4634.8,0.9766]
[1759847465343,0.00269831,4635.5,4635.4,1.3466]
[1759847465544,0.00269831,4635.5,4635.4,1.5656]
[1759847466345,0.00269831,4635.5,4635.4,1.3466]
[1759847466645,0.00269831,4635.5,4635.4,1.5656]
[1759847467640,0.00269831,4635.5,4635.4,4.7734]
[1759847468247,3.2078,4636.6,4635.4,4.7734]
[1759847468248,3.2078,4637.3,4635.5,0.9766]
[1759847468440,3.2078,4637.3,4636.5,0.9766]
[1759847468640,3.2078,4637.3,4636.7,0.9766]
[1759847468842,0.38787,4637.0,4636.8,0.37]
[1759847469146,0.38787,4637.0,4636.9,0.9766]
[1759847469344,0.3904847,4637.0,4636.9,1.19815898]
[1759847469946,0.3904847,4637.0,4636.9,0.97915898]
[1759847470446,0.0026147,4637.0,4636.9,1.19815898]
[1759847471543,0.0026147,4637.0,4636.9,9.40595898]
[1759847471844,0.0026147,4637.0,4636.9,4.40595898]
[1759847472044,3.2078,4637.8,4637.2,0.38785]
[1759847472343,0.38783,4637.5,4637.4,1.3466]
[1759847472849,0.38783,4637.5,4637.4,0.9766]
[1759847473038,0.39050751,4637.5,4637.4,0.9766]
[1759847473238,0.38787,4637.0,4636.9,0.00255898]
[1759847473447,0.38787,4637.0,4636.9,0.97915898]
[1759847474048,0.0156,4636.1,4635.2,0.09527536]
[1759847474341,0.38807,4634.6,4634.5,1.70479722]
[1759847474550,0.38807,4634.6,4634.5,1.92379722]
[1759847474750,0.38809,4634.4,4634.2,3.2078]
[1759847475049,0.38807,4634.6,4634.4,0.37]
[1759847475251,0.38805,4634.8,4634.4,0.37]
[1759847475447,0.38805,4634.9,4634.4,0.37]
[1759847475751,0.38801,4635.4,4634.4,3.5778]
[1759847475952,0.9698,4636.5,4635.2,0.9766]
[1759847476147,3.2078,4636.8,4635.4,0.9766]
[1759847476353,0.38798,4635.7,4635.6,0.37]
[1759847476654,0.38797,4635.8,4635.7,0.9766]
[1759847476848,0.96985,4636.3,4635.7,0.219]
[1759847477048,0.38797,4635.8,4635.7,0.219]
[1759847477354,0.38802,4635.2,4635.1,4.1844]
[1759847477552,0.38802,4635.2,4635.1,0.9766]
[1759847478148,0.96987,4636.1,4635.0,0.37]
[1759847478149,0.38801,4635.3,4635.0,0.37]
[1759847478354,3.2078,4636.2,4635.1,0.9766]
[1759847478550,0.38804,4635.0,4634.9,3.2078]
[1759847478748,0.38804,4635.0,4634.9,4.1844]
[1759847478948,0.38804,4635.0,4634.9,0.9766]
[1759847479248,0.38808,4634.5,4634.4,3.5778]
[1759847479453,0.38808,4634.5,4634.4,4.7744]
[1759847479754,0.38808,4634.5,4634.4,4.5544]
[1759847480246,0.96987,4636.1,4634.5,0.9766]
[1759847480446,3.2078,4636.3,4635.3,3.2078]
[1759847480650,0.96966,4637.1,4636.3,0.9766]
[1759847480854,3.2078,4637.3,4636.4,1.1966]
[1759847481055,0.38787,4637.0,4636.9,0.9766]
[1759847481354,0.38787,4637.0,4636.9,1.1966]
[1759847481754,0.00267751,4637.5,4636.9,1.1966]
[1759847482055,0.39050751,4637.5,4637.4,1.3466]
[1759847482258,0.39050751,4637.5,4637.4,1.5666]
[1759847482459,0.39050751,4637.5,4637.4,1.1966]
[1759847483351,0.39050751,4637.5,4637.4,1.5666]
[1759847483552,0.39050751,4637.5,4637.4,1.1966]
[1759847483759,0.38786,4637.1,4637.0,4.1844]
[1759847483962,0.38786,4637.1,4637.0,4.4044]
[1759847484257,0.00267751,4637.5,4637.0,3.4278]
[1759847484453,0.39050751,4637.5,4637.4,1.3466]
[1759847485356,0.39050751,4637.5,4637.4,1.5666]
[1759847485551,0.39050751,4637.5,4637.0,4.1844]
[1759847485861,0.00267751,4637.5,4637.4,1.3466]
[1759847486356,0.38784,4637.4,4637.3,0.22]
[1759847486654,0.38784,4637.4,4637.3,1.1966]
[1759847486860,0.00267751,4637.5,4637.4,1.3466]
[1759847487053,3.2078,4638.5,4638.0,0.37]
[1759847487364,3.59549,4639.1,4639.0,1.3466]
[1759847487657,3.59549,4639.1,4639.0,1.5666]
[1759847487857,3.2078,4639.1,4639.0,1.5666]
[1759847488160,0.00256935,4639.1,4639.0,4.77632824]
[1759847488659,0.39025935,4639.1,4639.0,4.77632824]
[1759847488855,0.39025935,4639.1,4639.0,4.55632824]
[1759847489052,0.39025935,4639.1,4639.0,1.56852824]
[1759847489254,3.2078,4639.6,4639.0,8.79972824]
[1759847489455,0.38759,4640.4,4640.0,0.38761]
[1759847489655,0.38758,4640.5,4640.4,0.37]
[1759847489850,3.2078,4640.7,4640.5,0.9766]
[1759847490062,0.38756,4640.8,4640.7,0.9766]
[1759847490261,0.38753,4641.1,4641.0,0.37]
[1759847490463,0.38917813,4641.1,4641.0,1.5666]
[1759847490657,0.00164813,4641.1,4641.0,1.3466]
[1759847491960,0.00164813,4641.1,4641.0,0.9766]
[1759847492156,0.38758,4640.5,4640.4,1.3466]
[1759847492357,0.38758,4640.5,4640.4,1.5666]
[1759847492558,0.38756,4640.7,4640.4,1.5666]
[1759847492855,0.00164813,4641.1,4641.0,1.3077]
[1759847493061,0.00164813,4641.1,4641.0,1.5277]
[1759847494362,0.38747,4641.8,4641.6,0.3658]
[1759847494555,0.38747,4641.8,4641.7,1.1619]
[1759847494756,3.59526,4642.0,4641.7,1.1619]
[1759847494962,0.38747,4641.9,4641.7,1.1619]
[1759847495164,3.2078,4642.0,4641.7,1.54937]
[1759847495353,0.00271418,4642.0,4641.9,0.9419]
[1759847495552,3.2078,4642.6,4641.9,0.9419]
[1759847495553,3.2078,4642.6,4642.3,0.9419]
[1759847495759,0.38741,4642.5,4642.3,0.9419]
[1759847496357,0.38748,4641.7,4641.6,1.3077]
[1759847496664,0.39025959,4641.7,4641.6,1.52969111]
[1759847496962,0.00277959,4641.7,4641.6,1.52969111]
[1759847497161,0.00277959,4641.7,4641.6,1.91717111]
[1759847497359,0.00277959,4641.7,4641.6,6.91717111]
[1759847497559,0.99045,4642.9,4642.3,0.9419]
[1759847497764,0.38742,4642.4,4642.3,0.9419]
[1759847497966,0.38742,4642.4,4642.3,1.1619]
[1759847498160,0.38738,4642.8,4642.3,1.1619]
[1759847498367,0.022,4642.9,4642.8,1.3431]
[1759847498565,0.02353511,4642.9,4642.8,1.5631]
[1759847498956,0.38731,4643.7,4643.1,0.38735]
[1759847499162,0.38732,4643.6,4643.5,0.9597]
[1759847499363,0.38732,4643.6,4643.5,1.1797]
[1759847499561,0.38731,4643.7,4643.6,0.9597]
[1759847499863,0.3873,4643.8,4643.6,0.9597]
[1759847500066,0.0025253,4643.8,4643.7,0.38731]
[1759847500266,0.0025253,4643.8,4643.6,0.9597]
[1759847500462,0.38732,4643.6,4643.5,1.1797]
[1759847500862,0.38732,4643.6,4643.5,0.9597]
[1759847501069,0.0025253,4643.8,4643.6,0.9597]
[1759847501666,0.0025253,4643.8,4643.6,0.38731]
[1759847501967,3.2078,4644.5,4644.0,0.77068]
[1759847502165,3.2078,4644.5,4644.1,1.56697]
[1759847502366,3.2078,4645.1,4644.2,0.9597]
[1759847502767,0.38723,4644.7,4644.5,0.3834]
[1759847502965,0.38920285,4644.7,4644.6,1.1797]
[1759847503668,0.96813,4644.4,4643.6,0.9597]
[1759847503872,0.00197285,4644.7,4643.8,0.9597]
[1759847504070,0.38729,4644.0,4643.8,0.9597]
[1759847504271,0.3873,4643.8,4643.7,0.22]
[1759847504467,0.38733,4643.5,4643.4,0.3834]
[1759847504670,0.38736,4643.1,4643.0,0.3834]
[1759847505174,0.96826,4643.8,4643.0,0.3834]
[1759847505369,0.38731,4643.7,4643.5,0.3834]
[1759847505567,0.38731,4643.7,4643.6,0.9597]
[1759847505762,0.38731,4643.7,4643.6,1.1797]
[1759847505968,0.38736,4643.1,4643.0,1.3431]
[1759847506171,0.38736,4643.1,4643.0,0.9597]
[1759847506372,0.3874,4642.6,4642.5,1.3431]
[1759847506774,0.3874,4642.6,4642.5,1.5631]
[1759847507770,0.38744,4642.1,4642.0,1.3431]
[1759847507968,0.38743,4642.3,4642.0,0.6034]
[1759847508275,0.38743,4642.3,4642.2,4.1675]
[1759847508474,4.17619,4643.2,4642.2,4.1675]
[1759847508475,0.38739,4642.7,4642.5,0.3834]
[1759847508668,0.38739,4642.7,4642.6,0.9597]
[1759847509173,0.3874,4642.6,4642.4,0.22]
[1759847509377,0.38747,4641.8,4641.7,3.2078]
[1759847509568,4.1763,4642.7,4641.7,0.9597]
[1759847509569,2.80593279,4642.5,4641.7,0.9597]
[1759847509867,0.38748,4641.7,4641.6,0.00199111]
[1759847510070,0.38747,4641.8,4641.7,0.9597]
[1759847510274,0.38747,4641.8,4641.6,0.00199111]
[1759847510572,0.0407,4641.7,4641.6,0.00199111]
[1759847510876,0.96883,4641.1,4640.5,0.221]
[1759847511075,0.38757,4640.6,4640.4,3.2078]
[1759847511270,0.38757,4640.6,4640.0,1.3431]
[1759847511271,0.38761,4640.1,4640.0,0.9597]
[1759847511768,0.38957562,4640.1,4640.0,0.96162488]
[1759847512169,0.38957562,4640.1,4640.0,0.00192488]
[1759847512464,5.43027562,4640.1,4640.0,0.00192488]
[1759847512867,0.38957562,4640.1,4640.0,0.00192488]
[1759847513070,0.38957562,4640.1,4640.0,0.96162488]
[1759847513372,0.38957562,4640.1,4640.0,0.00192488]
[1759847513874,5.43027562,4640.1,4640.0,0.00192488]
[1759847514171,3.59737562,4640.1,4640.0,0.00192488]
[1759847514374,8.59737562,4640.1,4640.0,0.00192488]
[1759847514577,3.59737562,4640.1,4640.0,0.96162488]
[1759847514869,8.63807562,4640.1,4640.0,0.00192488]
[1759847515672,0.00196562,4640.1,4640.0,1.34502488]
[1759847515874,0.38957562,4640.1,4640.0,1.34502488]
[1759847516075,0.00196562,4640.1,4640.0,1.34502488]
[1759847516577,0.00196562,4640.1,4640.0,1.56602488]
[1759847517173,0.00196562,4640.1,4640.0,1.34502488]
[1759847519274,0.00196562,4640.1,4640.0,1.73264488]
[1759847519468,3.2078,4641.0,4640.5,0.38758]
[1759847519673,3.2078,4641.0,4640.6,0.221]
[1759847519976,3.2078,4641.0,4640.8,0.38755]
[1759847520175,3.2078,4641.0,4640.9,0.9597]
[1759847520375,0.38756,4640.7,4640.6,0.9597]
[1759847520578,0.38954934,4640.7,4640.6,1.1807]
[1759847520775,0.00198934,4640.7,4640.6,1.1807]
[1759847521378,0.38761,4640.1,4640.0,1.34502488]
[1759847521573,0.00198934,4640.7,4640.6,0.9597]
[1759847521784,0.00198934,4640.7,4640.6,1.1807]
[1759847521977,0.00198934,4640.7,4640.6,0.9597]
[1759847522284,0.00198934,4640.7,4640.6,1.1807]